Cogmind - Beta 14 @@@ ROGUE MODE // 2024.08.29 @ 23:41:57 // Halloween2019/Abominations Player: J1ang-5h1 Result: Destroyed by Lesser Abomination with Etherial Claws Performance ------------- Evolutions (1) 500 Regions Visited (2) 400 Robots Destroyed (17) 85 Value Destroyed (670) 670 Prototype IDs (4) 80 Alien Tech Used (0) 0 Bonus (0) 0 TOTAL SCORE: 1735 Bonus ------- None Cogmind --------- Core Integrity 0/400 Matter 84/300 Energy 76/100 System Corruption 0% Temperature Cool (0) Movement Core (1400) Ox27 Location -9/Materials Parts ------- > --- POWER (1) -------- (None) > --- PROPULSION (2) --- Compact Wheel > --- UTILITY (4) ------ Heat Sink Huge Storage Unit Improved Terrain Scanner > --- WEAPON (2) ------- Assault Rifle > --- INVENTORY (25) --- Cooling System Cooling System Huge Storage Unit High-capacity Matter Pod (172) Sensor Array Improved Terrain Scanner Peak State ------------ > --- POWER ------------ Ion Engine > --- PROPULSION ------- Compact Wheel Compact Wheel > --- UTILITY ---------- Huge Storage Unit Improved Terrain Scanner Seismic Detector Hacking Suite > --- WEAPON ----------- Assault Rifle Assault Rifle > --- INVENTORY -------- Light Treads Cooling System Huge Storage Unit High-capacity Matter Pod Improved Terrain Scanner Assault Rifle Assault Rifle Assault Rifle [Rating: 14] Favorites ----------- Power Ion Engine Engine Ion Engine Propulsion Compact Wheel Treads Light Treads Leg Aluminum Leg Wheel Compact Wheel Utility Seismic Detector Device Seismic Detector Storage Huge Storage Unit Hackware Hacking Suite Weapon Assault Rifle Ballistic Gun Assault Rifle Build | -11 -10 -9 ------- Run | Yrd Mat Mat Slots Evolved 2 | . . 2 Power . | . . . Propulsion . | . . . Utility 2 | . . 2 Weapon . | . . . Parts Attached 17 | 2 6 9 Power 1 | . 1 . Engine 1 | . 1 . Core . | . . . Reactor . | . . . Propulsion 6 | . 4 2 Treads 3 | . 2 1 Leg . | . . . Wheel 3 | . 2 1 Hover . | . . . Flight . | . . . Utility 5 | 1 1 3 Device 3 | 1 . 2 Storage 1 | . 1 . Processor . | . . . Hackware 1 | . . 1 Protection . | . . . Artifact . | . . . Weapon 5 | 1 . 4 Energy Gun . | . . . Energy Cannon . | . . . Ballistic Gun 5 | 1 . 4 Ballistic Cannon . | . . . Launcher . | . . . Special Weapon . | . . . Impact Weapon . | . . . Slashing Weapon . | . . . Piercing Weapon . | . . . Special Melee Weapon . | . . . Unidentified Prototypes . | . . . Parts Lost 10 | . 1 9 Power 2 | . 1 1 Propulsion 2 | . . 2 Utility 2 | . . 2 Weapon 4 | . . 4 Highest Loss Streak 9 | . 1 9 To Critical Strikes . | . . . Average Slot Usage (%) 96 | . 99 89 Engine 12 | . 13 9 Treads 4 | . 6 . Leg 3 | . 5 . Wheel 17 | . 16 20 Device 16 | . 14 20 Storage 12 | . 14 11 Hackware 2 | . . 7 Ballistic Gun 25 | . 28 20 Peak Build Rating 14 | 8 8 14 Average Rating 9 | 6 7 12 On Entrance 7 | 6 8 8 Naked Turns . | . . . Heaviest Build 91 | 13 90 91 Greatest Support 40 | 20 40 32 Greatest Overweight (x) 2 | . 2 2 Average Overweight (x) 1 | . 1 2 Largest Inventory Capacity 25 | 8 25 25 Average Capacity 20 | 8 20 25 Most Carried 11 | 8 11 11 Average Carried 8 | 6 8 8 Final Capacity 25 | 8 25 25 Final Carried 9 | 8 9 6 Class Distribution -------------------- 80% | Mutant 19% | Scavenger-Mutant Dominant Class ---------------- Mutant | -10/Materials Scavenger-Mutant | -9/Materials Resources | -11 -10 -9 ----------- Run | Yrd Mat Mat Matter Collected 730 | 256 474 . Remotely . | . . . Salvage Created 661 | 111 367 183 Parts 48 | 10 18 20 Haulers Intercepted . | . . . Recyclers Shooed . | . . . Parts Field Recycled . | . . . Retrieved Matter . | . . . Parts Self-Destructed . | . . . Prevented . | . . . Kills | -11 -10 -9 ------- Run | Yrd Mat Mat Combat Hostiles Destroyed 10 | . 6 4 Guns 10 | . 6 4 Classes Destroyed 7 | 2 4 1 Tunneler 3 | 3 . . Recycler 1 | 1 . . Operator 1 | . 1 . Watcher 1 | . 1 . Grunt 2 | . 2 . Abomination 8 | . 4 4 Anomaly 1 | . . 1 Best Kill Streak 5 | 2 3 5 Combat Bots Only 4 | . 3 4 Max Kills in Single Turn 1 | 1 1 1 Gunslinging . | . . . Exploded . | . . . Melee . | . . . Uniques/NPCs Destroyed . | . . . Combat | -11 -10 -9 -------- Run | Yrd Mat Mat Hostile Shots Fired 131 | . 43 88 Missed 34 | . 15 19 Damage Taken 1775 | . 284 1491 Core 488 | . 62 426 Absorbed by Shields . | . . . Regen/Repaired (Parts) 87 | . . 87 Core Remaining (%) 87 | 100 75 . Volleys Fired 79 | 6 40 33 Largest 2 | 2 2 2 Hottest 40 | 40 40 40 Shots Fired 146 | 12 77 57 Gun 146 | 12 77 57 Cannon . | . . . Launcher . | . . . Special . | . . . Kinetic 146 | 12 77 57 Thermal . | . . . Explosive . | . . . Electromagnetic . | . . . Robot Hit Streak 17 | 3 9 17 Robot Miss Streak 7 | 1 3 7 Penetration Max . | . . . Secondary Targets 3 | . 1 2 Max Gunslinging Chain 1 | . 1 1 Shots Hit Robots 100 | 7 50 43 Core Hits 38 | 5 19 14 Critical Kills . | . . . Critical Parts Destroyed . | . . . Critical Strikes . | . . . Melee Attacks . | . . . Impact . | . . . Slashing . | . . . Piercing . | . . . Sneak Attacks . | . . . Combat Hostiles . | . . . Follow-up Attacks . | . . . Damage Inflicted 1283 | 95 620 568 Guns 1283 | 95 620 568 Cannons . | . . . Explosions . | . . . Melee . | . . . Ramming . | . . . Kinetic 1283 | 95 620 568 Thermal . | . . . Explosive . | . . . Electromagnetic . | . . . Impact . | . . . Slashing . | . . . Piercing . | . . . Highest Corruption 17 | . 17 . Average Corruption 10 | . 10 . Corruption Purged . | . . . Corruption Blocked . | . . . Effects 15 | . 15 . Message Errors 3 | . 3 . Matter Fused 2 | . 2 . Heat Flow Errors 3 | . 3 . Energy Discharges 1 | . 1 . Parts Fused 1 | . 1 . Data Loss (minor) 1 | . 1 . Data Loss (major) 1 | . 1 . Weapon Failures 3 | . 3 . Overload Shots . | . . . Overflow Damage . | . . . Projectiles . | . . . Explosions . | . . . Melee . | . . . Knockbacks . | . . . Impact . | . . . Kinetic . | . . . Secondary . | . . . Self-Inflicted Damage . | . . . Shots . | . . . Rammed . | . . . Targets Rammed . | . . . Kicked . | . . . Crushed . | . . . Highest Temperature 238 | . 238 24 Average Temperature 75 | . 99 11 Received Heat Transfer 414 | . 99 315 Siege Activations . | . . . Robots Corrupted . | . . . Combat Hostiles . | . . . Parts Fried . | . . . Impact Corruptions . | . . . Robots Melted . | . . . Combat Hostiles . | . . . Parts Melted . | . . . Heat Transferred . | . . . Parts Sabotaged . | . . . Parts Stolen . | . . . Parts Stripped . | . . . Power Chain Reactions . | . . . Alert | -11 -10 -9 ------- Run | Yrd Mat Mat Peak Influence 131 | 20 131 17 Initial 13 | . 13 2 Average 37 | 11 60 1 Maximum Alert Level . | . . . Low Security (%) 100 | 100 100 100 Level 1 . | . . . Level 2 . | . . . Level 3 . | . . . Level 4 . | . . . Level 5 . | . . . High Security . | . . . Max Security . | . . . Squads Dispatched 4 | . 3 1 Investigation 3 | . 2 1 Extermination . | . . . Reinforcement 1 | . 1 . Assault . | . . . Garrison . | . . . Intercept . | . . . Searches Triggered . | . . . Construction Impeded . | . . . Haulers Reinforced . | . . . Active Scanning Responses . | . . . Cargo Convoy Interrupts . | . . . Stealth | -11 -10 -9 --------- Run | Yrd Mat Mat Distress Signals 8 | . 1 7 Communications Jammed . | . . . Distress Signals . | . . . Times Spotted 16 | . 8 8 Peak Tracking Total 5 | . 3 5 Tactical Retreats . | . . . Traps | -11 -10 -9 ------- Run | Yrd Mat Mat Traps Triggered . | . . . Indirectly . | . . . Trap Hack Attempts . | . . . Triggered . | . . . Disarmed . | . . . Reprogrammed . | . . . Reused . | . . . Traps Extracted . | . . . Installed . | . . . Triggered . | . . . Machines | -11 -10 -9 ---------- Run | Yrd Mat Mat Machines Disabled . | . . . Max in Single Turn . | . . . Machines Repaired . | . . . Machines Dismantled . | . . . Machines Sabotaged . | . . . Overloaded Fab Kills . | . . . Hacking | -11 -10 -9 --------- Run | Yrd Mat Mat Machines Accessed 7 | . 6 1 Terminals 5 | . 5 . Fabricators . | . . . Repair Stations 1 | . . 1 Recycling Units 1 | . 1 . Scanalyzers . | . . . Garrison Access . | . . . Total Hacks 28 | . 24 4 Successful 18 | . 14 4 Failed 10 | . 10 . Catastrophic 2 | . 2 . Database Lockouts . | . . . Manual 13 | . 13 . Terminals 23 | . 23 . Fabricators . | . . . Repair Stations 4 | . . 4 Recycling Units 1 | . 1 . Scanalyzers . | . . . Garrison Access . | . . . Terminal Hacks 6 | . 6 . Robot Analysis 1 | . 1 . Prototype ID Bank 3 | . 3 . Unreport Threat 1 | . 1 . Locate Traps 1 | . 1 . Fabricator Hacks . | . . . Repair Station Hacks 4 | . . 4 Scan Component 2 | . . 2 Repair 2 | . . 2 Recycling Unit Hacks . | . . . Scanalyzer . | . . . Garrison Access Hacks . | . . . Unauthorized Hacks 8 | . 8 . Terminals 7 | . 7 . Botnet 3 | . 3 . Skim 4 | . 4 . Fabricators . | . . . Repair Stations . | . . . Recycling Units 1 | . 1 . Tunnel 1 | . 1 . Scanalyzers . | . . . Garrison Access . | . . . Data Cores Recovered 1 | . 1 . Used . | . . . Hacking Detections 5 | . 4 1 Full Trace Events . | . . . Feedback Events . | . . . Feedback Blocked . | . . . Robot Schematics Acquired . | . . . Robots Built . | . . . Authchips . | . . . Time . | . . . Total Robot Build Rating . | . . . Part Schematics Acquired . | . . . Parts Built . | . . . Authchips . | . . . Time . | . . . Total Part Build Rating . | . . . Parts Repaired 2 | . . 2 Time 52 | . . 52 Parts Recycled . | . . . Recycled Matter . | . . . Retrieved Matter . | . . . Retrieved Components . | . . . Parts Scanalyzed . | . . . Part Schematics Acquired . | . . . Parts Damaged . | . . . Bothacking | -11 -10 -9 ------------ Run | Yrd Mat Mat Used RIF Installer . | . . . Robots Hacked . | . . . Non-combat . | . . . Combat . | . . . Robot Hacks Applied . | . . . Relay Couplers Released . | . . . Fabnet Peak Effective % . | . . . Robots Rewired . | . . . Allies Hacked . | . . . Hacks Repelled . | . . . Allies | -11 -10 -9 -------- Run | Yrd Mat Mat Total Allies . | . . . Largest Group . | . . . Highest-Rated Group . | . . . Highest-Rated Ally . | . . . Total Orders . | . . . Ally Attacks . | . . . Total Damage . | . . . Kills . | . . . Allies Corrupted . | . . . Allies Melted . | . . . Intel | -11 -10 -9 ------- Run | Yrd Mat Mat Robot Analysis Total 1 | . 1 . Derelict Logs Recovered . | . . . Drone Launches . | . . . Drone Recoveries . | . . . Exploration | -11 -10 -9 ------------- Run | Yrd Mat Mat Turns Passed 755 | 75 446 234 Spaces Moved 312 | 24 231 57 Core . | . . . Treads 26 | . 26 . Legs 93 | 24 69 . Wheels 193 | . 136 57 Hover . | . . . Flight . | . . . Fastest Speed 120 | 120 120 130 Average Speed 132 | 120 133 130 Slowest Speed 320 | 120 320 130 Overloaded Moves . | . . . Propulsion Burnouts . | . . . Robots Hopped . | . . . Cave-ins Triggered . | . . . Exploration Rate (%) 23 | 3 56 10 Regions Visited 2 Branch Regions . Pre-discovered Areas 1 | . 1 . Known Exits Taken . | . . . Unknown Exits Taken 2 | 1 1 . Scrap Searched . | . . . Spaces Dug . | . . . Terrain Destroyed . | . . . Melee . | . . . Projectile . | . . . AOE . | . . . Terrain Rammed . | . . . Walls Destroyed . | . . . Machines Disabled . | . . . Actions | -11 -10 -9 --------- Run | Yrd Mat Mat Total 500 | 57 288 155 Wait 74 | 24 . 50 Move 310 | 23 230 57 Hop . | . . . Pick Up 15 | 2 7 6 Fast Attach 1 | 1 . . Attach 10 | . 1 9 Detach . | . . . Swap 6 | 1 5 . Drop 5 | . 5 . Fire 79 | 6 40 33 Melee . | . . . Ram . | . . . Kick . | . . . Crush . | . . . Escape Stasis . | . . . Rewire . | . . . Trap . | . . . Miscellaneous . | . . . Route ------- -11/Scrapyard -10/Materials -9/Materials History --------- Turn | Location | Event 15 | -11/Scrapyard | Discovered new exit (range 2) 76 | -11/Scrapyard | Entered Materials 263 | -10/Materials | System corruption reached 10% 303 | -10/Materials | Build established: Mutant 445 | -10/Materials | Discovered new exit (range 11) 484 | -10/Materials | Discovered new exit (range 15) 522 | -10/Materials | Entered another Materials area 522 | -9/Materials | Evolved 2 slots: Utility x2 524 | -9/Materials | Discovered new exit (range 8) 587 | -9/Materials | Repaired Com. Wheel 614 | -9/Materials | Repaired Assault Rifle 746 | -9/Materials | Core integrity fell below 50% 752 | -9/Materials | Core integrity fell below 20% 756 | -9/Materials | Destroyed by Lesser Abomination with Etherial Claws Last Messages --------------- 00729_ Frozen by Ice Anomaly. 00730_ U-05 Engineer builds a Wall. 00731_ Parts repaired by Paradox Anomaly. 00742_ Assault Rifle destroyed. 00742_ Com. Wheel destroyed. 00744_ Lesser Abomination spits out Wheel. 00744_ Lesser Abomination feeds off Hungry Anomaly, taking Wheel. 00751_ Hungry Anomaly eats Wheel. 00751_ Unstable Anomaly suddenly flashes brightly. 00751_ Engulfed by violent ripples tearing at the fabric of space. 00751_ Assault Rifle destroyed. 00753_ Lgt. Treads destroyed. 00754_ Lesser Abomination spits out Wheel. 00754_ Lesser Abomination feeds off Hungry Anomaly, taking Com. Wheel. 00755_ Hungry Anomaly eats Wheel. 00756_ Critical hit (Intensify). Map ----- +----------------------------------------------------+ | #??????????????????????????????????????????? | | #?#?#??????????????????????????????????????? | | ### #??????? ? ????????????????????????????????? | | ??# #?##???????????????????????????????????????? | | ??# #??????????????????????????????????????????? | | ?? #??????????#???????????????????????????????? | | ? #??????????????????????????????????????????? | | ?? ???????#???????????????????????????????? | | % ##?????????????????????????????????????????? | | ""#####??????????????????????????????????????????? | | ???????????????????????????????????????????????? | | ???????#????????#????????? ????????????????????? | | % ????#?????????????#????#???????????????????????? | | ????#??????? ????????????????"?????????????????? | | ??????????? " "##???????????? ??????????????????? | | ??????????? " "##???#?????" ????#???????????????? | | ? ????????# ; ;%####??????????? ????????????????? | | ??? ???????# ;n; # ####??#???????????????????????? | | ??????????#";; ; ######???? ? ?? ? ??????????? | | ?????????? ; ;;;;;;;;;######???????"#??????????? | | ??????????? ; ; n ####?? ??????????? | | ??????????? ; ;;;;; #"###" %%?????????? | | ??????????? ?? ; ; % # ## ?????????? | | ?????????????????# ; n n;% %## ????????? | | ??????????????????## % ; ;# ????????? | | ??????????? ??????## % A@A ; % ;; % ???????? | | ?????????#????????## %; ;;;;;;;%????????? | | ???????????????????# ;% A% % ????????? | | ????????????????#??######;;;;; % ?????????? | | ???????? ????? ????????? ;% %% ?????????? | | ????????????????????#??""""" ; %######??????????? | | ????????????????#???????"""" ; %#???????????????? | | ?????????????????????? ?"""" ; #? ?????????????? | | ???????????????????????? ;n #???? ??????????? | | ???????????????????#?? ?"""? ; n? ?????????????? | | ?????????????????????????????; r;;??????????????? | | ?????????????????#??? ?????"?? ; ?????????????? | | ??????????????????????????????? ; ??????????????? | | ?????????????????#??#??????????? ? ??????????????? | | ?????????????????????????????????????????????????? | | ?????????????????#??????????#????????????????????? | | ?????????????????????????????????????????????????? | | ?????????????????????????????????????????????????? | | ?????????????????????????????????????????????????? | | ?????????????????????????????????????????????????? | | ?????????????????????????????????????????????????? | | ?????????????????????????????????????????????????? | | ?????????????????????????????????????????????????? | | ?????????????????????????????????????????????????? | | ?????????????????????????????????????????????????? | +----------------------------------------------------+ Best States ------------- Heat Dissipation 38 Energy Generation 10 Energy Capacity 250 Matter Stores 300 Matter Capacity 300 Sight Range 16 Terrain Scan Range 16 Terrain Scan Density 10 Evasion (%) 55 Recoil Reduction 2 Offensive Hacking 10 Item Schematics ----------------- None Robot Schematics ------------------ None Fabricated ------------ Nothing Alien Tech Used ----------------- None Achievements -------------- None Challenges ------------ None Game ------ Seed SpacefoldLayeredAccelerator Manual? 0 Play Time 00:11:04 Cumulative 255.1 hours Start 2024.08.29 @ 23:31:01 End 2024.08.29 @ 23:41:57 Sessions 1 Manual Loads 0 Difficulty Rogue Special Mode Halloween2019/Abominations Game No. 191 Rogue 181 Adventurer 0 Explorer 10 Win Type - Total 3 Types 3/0/0/0/0/0/0/0/0 Lore% 62 Gallery% 69 Achievement% 53 Wizard Run 0 Options --------- Layout 2 ASCII 0 Keyboard 0 Movement Arrows Keybinds 1 Fullscreen 1 Font 24/Smallcaps Map View 50x44 Zoom Use 0% Tactical HUD 1 Map Filters NONE Filters NONE Steam 1 RUN: 09a669ab-0c80-42fb-a2cf-6c9b9f43f4a4